bitfinex/quotes_BTCUSD_20240617
["timestamp","ask_amount","ask_price","bid_price","bid_amount"]
[1718622495563,2.03283401,65999.0,65998.0,0.008935]
[1718622495788,2.03432217,65999.0,65998.0,0.008935]
[1718622496023,2.1080206,65999.0,65998.0,0.008935]
[1718622496229,2.03432217,65999.0,65998.0,0.008935]
[1718622496498,1.93432217,65999.0,65998.0,0.008935]
[1718622496698,2.03432217,65999.0,65998.0,0.008935]
[1718622496910,2.03432217,65999.0,65998.0,0.007935]
[1718622497118,2.03432217,65999.0,65998.0,0.000935]
[1718622497320,2.03332217,65999.0,65998.0,0.000935]
[1718622497521,2.03632217,65999.0,65998.0,0.000935]
[1718622498379,2.03932217,65999.0,65998.0,0.001935]
[1718622499237,2.39235617,65999.0,65998.0,0.001935]
[1718622499443,2.03932217,65999.0,65998.0,0.001935]
[1718622499856,2.08932217,65999.0,65998.0,0.001935]
[1718622500064,2.03932217,65999.0,65998.0,0.001935]
[1718622500318,1.93932217,65999.0,65998.0,0.001935]
[1718622500525,1.89632217,65999.0,65998.0,0.001935]
[1718622500746,1.20742212,65999.0,65998.0,0.001935]
[1718622500959,1.28022212,65999.0,65998.0,0.001935]
[1718622501402,1.08742212,65999.0,65998.0,0.001935]
[1718622501616,1.22832491,65999.0,65998.0,0.001935]
[1718622501826,1.22562216,65999.0,65998.0,0.001935]
[1718622502040,1.18022212,65999.0,65998.0,0.001935]
[1718622502244,1.22562263,65999.0,65998.0,0.001935]
[1718622503212,1.18022212,65999.0,65998.0,0.001935]
[1718622503415,1.22562124,65999.0,65998.0,0.001935]
[1718622505010,1.20562124,65999.0,65998.0,0.001935]
[1718622505242,0.52675324,65999.0,65998.0,0.0167085]
[1718622505434,0.59955324,65999.0,65998.0,0.0167085]
[1718622505666,0.85718812,65999.0,65998.0,0.0167085]
[1718622506366,0.85418812,65999.0,65998.0,0.0765085]
[1718622506585,0.85418812,65999.0,65998.0,0.1598085]
[1718622506809,0.85418812,65999.0,65998.0,0.1608085]
[1718622507116,0.85118812,65999.0,65998.0,0.1608085]
[1718622507321,0.47635412,65999.0,65998.0,0.1678085]
[1718622507471,0.77938812,65999.0,65998.0,0.1608085]
[1718622507679,0.47635412,65999.0,65998.0,0.1608085]
[1718622507906,0.47735412,65999.0,65998.0,0.1668085]
[1718622508108,0.78038812,65999.0,65998.0,0.1658085]
[1718622510988,1.08342212,65999.0,65998.0,0.1658085]
[1718622511409,1.10342212,65999.0,65998.0,0.006935]
[1718622511645,1.08342212,65999.0,65998.0,0.006935]
[1718622511841,1.10342212,65999.0,65998.0,0.006935]
[1718622512249,1.08342212,65999.0,65998.0,0.006935]
[1718622512886,1.10342212,65999.0,65998.0,0.006935]
[1718622513119,1.10342212,65999.0,65998.0,0.0218385]
[1718622513467,1.08342212,65999.0,65998.0,0.0218385]
[1718622513844,1.08342212,65999.0,65998.0,0.006935]
[1718622514041,1.15622212,65999.0,65998.0,0.006935]
[1718622521333,1.08342212,65999.0,65998.0,0.006935]
[1718622521589,1.14779299,65999.0,65998.0,0.006935]
[1718622525363,1.16779299,65999.0,65998.0,0.006935]
[1718622525918,1.51622677,65999.0,65998.0,0.006935]
[1718622526160,1.47082699,65999.0,65998.0,0.006935]
[1718622526400,1.51622677,65999.0,65998.0,0.006935]
[1718622526933,1.47082699,65999.0,65998.0,0.006935]
[1718622528162,1.51622677,65999.0,65998.0,0.006935]
[1718622528411,1.21319277,65999.0,65998.0,0.006935]
[1718622528656,1.51622677,65999.0,65998.0,0.006935]
[1718622528905,1.21319277,65999.0,65998.0,0.006935]
[1718622529408,1.51622677,65999.0,65998.0,0.006935]
[1718622529664,1.47082699,65999.0,65998.0,0.006935]
[1718622529916,1.53892667,65999.0,65998.0,0.006935]
[1718622531351,1.51892667,65999.0,65998.0,0.006935]
[1718622531560,1.53892667,65999.0,65998.0,0.006935]
[1718622534782,1.96056067,65999.0,65998.0,0.006935]
[1718622535013,1.71448867,65999.0,65998.0,0.006935]
[1718622535432,1.81448867,65999.0,65998.0,0.006935]
[1718622535860,1.81248867,65999.0,65998.0,0.000935]
[1718622536080,1.81548867,65999.0,65998.0,0.000935]
[1718622536709,1.71548867,65999.0,65998.0,0.000935]
[1718622537336,1.71848867,65999.0,65998.0,0.001935]
[1718622537747,1.81848867,65999.0,65998.0,0.001935]
[1718622538420,1.93257646,65999.0,65998.0,0.001935]
[1718622538631,2.23561046,65999.0,65998.0,0.001935]
[1718622540122,2.22211099,65999.0,65998.0,0.001935]
[1718622540969,2.26511099,65999.0,65998.0,0.001935]
[1718622541201,2.36511099,65999.0,65998.0,0.001935]
[1718622541623,2.38880941,65999.0,65998.0,0.001935]
[1718622541835,2.33880941,65999.0,65998.0,0.001935]
[1718622542046,2.36511099,65999.0,65998.0,0.001935]
[1718622542273,2.36211099,65999.0,65998.0,0.001935]
[1718622542701,2.36911099,65999.0,65998.0,0.002935]
[1718622542898,2.31911099,65999.0,65998.0,0.002935]
[1718622543361,2.31611099,65999.0,65998.0,0.001935]
[1718622543580,2.38051012,65999.0,65998.0,0.001935]
[1718622543795,2.39151012,65999.0,65998.0,0.002935]
[1718622544993,2.39211338,65999.0,65998.0,0.002935]
[1718622546622,1.383905,65987.0,65986.0,0.1436]
[1718622546820,1.436705,65987.0,65986.0,0.1436]
[1718622547029,1.44901298,65987.0,65986.0,0.15796]
[1718622547236,1.46901298,65987.0,65986.0,0.15796]
[1718622547871,1.46901298,65987.0,65986.0,0.16196]
[1718622548520,1.47001298,65987.0,65986.0,0.16396]
[1718622549452,1.47001298,65987.0,65986.0,0.1496]
[1718622553316,1.47001298,65987.0,65986.0,0.150535]
[1718622554941,1.47001298,65987.0,65986.0,0.006935]
[1718622555169,1.87310298,65987.0,65986.0,0.006935]
[1718622555377,1.84220446,65987.0,65986.0,0.006935]
[1718622555799,1.79682003,65987.0,65986.0,0.006935]
[1718622556224,1.86389668,65987.0,65986.0,0.000935]
[1718622556455,1.87589668,65987.0,65986.0,0.001935]
[1718622556661,1.81882003,65987.0,65986.0,0.001935]
[1718622556850,1.88689668,65987.0,65986.0,0.001935]
[1718622557070,1.81882003,65987.0,65986.0,0.001935]
[1718622557708,1.79510298,65987.0,65986.0,0.001935]
[1718622557926,1.72230298,65987.0,65986.0,0.001935]
[1718622558140,1.46458423,65987.0,65986.0,0.001935]
[1718622558343,1.53738423,65987.0,65986.0,0.001935]
[1718622558536,1.49201298,65987.0,65986.0,0.001935]
[1718622558743,1.50967022,65987.0,65986.0,0.001935]
[1718622560025,1.43687022,65987.0,65986.0,0.080035]
[1718622560263,1.41687022,65987.0,65986.0,0.140435]
[1718622560486,1.09612298,65987.0,65986.0,0.140435]
[1718622560697,1.16892298,65987.0,65986.0,0.140435]
[1718622562421,1.15692298,65987.0,65986.0,0.139435]
[1718622562886,1.71650077,65987.0,65986.0,0.001935]
[1718622563330,1.64010077,65987.0,65986.0,0.001935]
[1718622563535,1.62910077,65987.0,65986.0,0.001935]
[1718622563750,1.63210077,65987.0,65986.0,0.001935]
[1718622565484,1.69092627,65987.0,65986.0,0.001935]
[1718622565691,1.71361167,65987.0,65986.0,0.001935]
[1718622565891,1.64555549,65987.0,65986.0,0.001935]
[1718622566123,1.94892468,65987.0,65986.0,0.001935]
[1718622566343,2.09192468,65987.0,65986.0,0.001935]
[1718622566774,2.01912468,65987.0,65986.0,0.001935]
[1718622566988,2.19192468,65987.0,65986.0,0.001935]
[1718622567198,2.2826666,65987.0,65986.0,0.001935]
[1718622567402,2.17819077,65987.0,65986.0,0.001935]
[1718622567630,2.28275234,65987.0,65986.0,0.001935]
[1718622567845,2.19200487,65987.0,65986.0,0.001935]
[1718622568066,2.19199137,65987.0,65986.0,0.001935]
[1718622568509,1.88890137,65987.0,65986.0,0.001935]
[1718622568857,1.78890137,65987.0,65986.0,0.001935]
[1718622570291,1.87965596,65987.0,65986.0,0.001935]
[1718622570693,1.78890137,65987.0,65986.0,0.001935]
[1718622571132,1.87966106,65987.0,65986.0,0.001935]
[1718622571527,1.97966106,65987.0,65986.0,0.001935]
[1718622571729,1.87966106,65987.0,65986.0,0.001935]
[1718622572150,1.78890137,65987.0,65986.0,0.001935]
[1718622572559,1.78849611,65987.0,65986.0,0.001935]
[1718622573097,2.09158611,65987.0,65986.0,0.001935]
[1718622573318,1.78849611,65987.0,65986.0,0.001935]
[1718622573543,1.88849897,65987.0,65986.0,0.001935]
[1718622574152,2.19158897,65987.0,65986.0,0.001935]
[1718622574304,1.88849897,65987.0,65986.0,0.001935]
[1718622575832,2.19158897,65987.0,65986.0,0.001935]
[1718622576203,2.30502344,65987.0,65986.0,0.001935]
[1718622576407,2.00193344,65987.0,65986.0,0.001935]
[1718622577209,2.00217545,65987.0,65986.0,0.001935]
[1718622577411,2.43546545,65987.0,65986.0,0.001935]
[1718622577614,1.364256,65970.0,65969.0,0.1407]
[1718622577848,1.437056,65970.0,65969.0,0.1407]
[1718622578046,1.44930956,65970.0,65969.0,0.1407]
[1718622578949,1.44930956,65970.0,65969.0,0.1447]
[1718622579582,1.14614156,65970.0,65969.0,0.15917]
[1718622579807,1.14614156,65970.0,65969.0,0.1407]
[1718622580234,1.14714156,65970.0,65969.0,0.1407]
[1718622580938,1.14714156,65970.0,65969.0,0.1427]
[1718622582152,1.16714156,65970.0,65969.0,0.1427]
[1718622582359,1.47030956,65970.0,65969.0,0.1427]
[1718622583212,1.4701272,65970.0,65969.0,0.1427]
[1718622583636,1.4701272,65970.0,65969.0,0.002]
[1718622588358,1.4501272,65970.0,65969.0,0.002]
[1718622588565,1.4701272,65970.0,65969.0,0.0834]
[1718622591882,1.4701272,65970.0,65969.0,0.002]
[1718622592712,1.5701272,65970.0,65969.0,0.002]
[1718622593592,1.3973272,65970.0,65969.0,0.002]
[1718622593797,1.4701272,65970.0,65969.0,0.002]
[1718622594652,1.3773272,65970.0,65969.0,0.002]
[1718622594854,1.4701272,65970.0,65969.0,0.002]
[1718622600088,1.5701272,65970.0,65969.0,0.002]
[1718622601060,1.4701272,65970.0,65969.0,0.002]
[1718622601262,1.5479272,65970.0,65969.0,0.002]
[1718622601466,1.69329345,65970.0,65969.0,0.002]
[1718622601672,1.59329345,65970.0,65969.0,0.002]
[1718622602317,1.88748124,65970.0,65969.0,0.002]
[1718622602532,2.02439858,65970.0,65969.0,0.002]
[1718622602740,2.04708171,65970.0,65969.0,0.002]
[1718622603610,2.35024971,65970.0,65969.0,0.002]
[1718622603817,2.11166483,65970.0,65969.0,0.002]
[1718622604029,1.9563492,65970.0,65969.0,0.002]
[1718622604239,1.081249,65960.0,65959.0,0.1443]
[1718622604455,1.154049,65960.0,65959.0,0.1443]
[1718622604669,1.46940154,65960.0,65959.0,0.1443]
[1718622605529,1.46940154,65960.0,65959.0,0.1463]
[1718622605747,1.47040154,65960.0,65959.0,0.1463]
[1718622607044,1.37760154,65960.0,65959.0,0.1463]
[1718622607265,1.45040154,65960.0,65959.0,0.1463]
[1718622607470,1.47040154,65960.0,65959.0,0.1463]
[1718622607674,1.37760154,65960.0,65959.0,0.1463]
[1718622607897,1.45040154,65960.0,65959.0,0.1463]
[1718622609604,0.46795954,65960.0,65959.0,0.16093]
[1718622609841,0.01313854,65960.0,65959.0,0.16093]
[1718622610051,0.01313854,65960.0,65959.0,0.312539]
[1718622610265,0.01313854,65960.0,65959.0,0.332539]
[1718622610474,0.01313854,65960.0,65959.0,0.16093]
[1718622610688,0.01313854,65960.0,65959.0,0.1463]
[1718622610897,0.46795954,65960.0,65959.0,0.1463]
[1718622614822,0.46795954,65960.0,65959.0,0.14388885]
[1718622615583,0.77117354,65960.0,65959.0,0.14388885]
[1718622616020,0.46795954,65960.0,65959.0,0.14388885]
[1718622616624,0.46795954,65960.0,65959.0,0.14482385]
[1718622618003,0.77117354,65960.0,65959.0,0.14482385]
[1718622620953,0.84397354,65960.0,65959.0,0.14482385]
[1718622621188,0.46795954,65960.0,65959.0,0.14482385]
[1718622621637,0.50145954,65960.0,65959.0,0.14482385]
[1718622625199,0.49799172,65960.0,65959.0,0.14482385]
[1718622626658,0.49799172,65960.0,65959.0,0.17624006]
[1718622627319,0.49799172,65960.0,65959.0,0.14482385]
[1718622629054,0.80120572,65960.0,65959.0,0.14482385]
[1718622629281,0.49799172,65960.0,65959.0,0.14482385]
[1718622630389,0.04317072,65960.0,65959.0,0.14482385]
[1718622630862,0.49799172,65960.0,65959.0,0.14482385]
[1718622631744,0.50135274,65960.0,65959.0,0.14482385]
[1718622633946,0.50135274,65960.0,65959.0,1.10837265]
[1718622633947,0.04653174,65960.0,65959.0,1.10837265]
[1718622634170,0.04653174,65960.0,65959.0,1.59981033]
[1718622634383,0.0345,65960.0,65959.0,1.59981033]
[1718622634826,0.0345,65960.0,65959.0,1.59979551]
[1718622635037,0.0335,65960.0,65959.0,1.59979551]
[1718622635462,0.0335,65960.0,65959.0,1.60179551]
[1718622635592,0.0335,65960.0,65959.0,1.7518833]
[1718622636520,0.0345,65960.0,65959.0,1.7568833]
[1718622636919,0.0345,65960.0,65959.0,1.7548833]
[1718622637178,0.0335,65960.0,65959.0,1.7498833]
[1718622637442,0.0345,65960.0,65959.0,1.7568833]
[1718622637650,0.0355,65960.0,65959.0,1.7618833]
[1718622638752,0.0355,65960.0,65959.0,2.07643252]
[1718622639260,0.0355,65960.0,65959.0,2.00363252]
[1718622639485,0.0355,65960.0,65959.0,1.3858653]
[1718622644740,0.0355,65960.0,65959.0,1.38586314]
[1718622649201,0.0355,65960.0,65959.0,1.36586314]
[1718622649431,0.0355,65960.0,65959.0,1.38586314]
[1718622649628,0.0355,65960.0,65959.0,1.26004443]
[1718622649853,0.0355,65960.0,65959.0,0.45573344]
[1718622650077,0.04758992,65960.0,65959.0,0.45573344]
[1718622651834,0.04621357,65960.0,65959.0,0.45573344]
[1718622653526,0.04621357,65960.0,65959.0,0.47573344]
[1718622657031,0.04621357,65960.0,65959.0,0.93056044]
[1718622657190,0.04621357,65960.0,65959.0,0.62734244]
[1718622657563,0.04621357,65960.0,65959.0,0.72945151]
[1718622658831,0.04621357,65960.0,65959.0,0.72945891]
[1718622659749,0.04621357,65960.0,65959.0,0.72945846]
[1718622660376,0.04621357,65960.0,65959.0,1.03267646]
[1718622663507,0.04621357,65960.0,65959.0,1.33589446]
[1718622663724,0.03412365,65960.0,65959.0,1.33589446]
[1718622665025,0.03412365,65960.0,65959.0,1.33589153]
[1718622665720,0.03412365,65960.0,65959.0,2.01512753]
[1718622665951,0.03412365,65960.0,65959.0,2.35831564]
[1718622666156,0.03412365,65960.0,65959.0,2.37831564]
[1718622666830,0.03312365,65960.0,65959.0,2.24748982]
[1718622667008,0.03312365,65960.0,65959.0,2.37330335]
[1718622667287,0.03312365,65960.0,65959.0,2.37130335]
[1718622667504,0.03312365,65960.0,65959.0,2.06808535]
[1718622667723,0.03412365,65960.0,65959.0,2.07508535]
[1718622668577,0.03412365,65960.0,65959.0,2.07492414]
[1718622670359,0.03412365,65960.0,65959.0,2.47814214]
[1718622670585,0.03231709,65960.0,65959.0,2.94939698]
[1718622670799,0.03231709,65960.0,65959.0,2.81686085]
[1718622671221,0.03231709,65960.0,65959.0,2.88090713]
[1718622671431,0.03231709,65960.0,65959.0,3.18412513]
[1718622671641,0.03131709,65960.0,65959.0,2.7480936]
[1718622671814,0.03231709,65960.0,65959.0,2.62137489]
[1718622672711,0.03231709,65960.0,65959.0,2.50886871]
[1718622672923,0.03131709,65960.0,65959.0,2.33106871]
[1718622673129,0.03131709,65960.0,65959.0,2.50386871]
[1718622673311,0.03131709,65960.0,65959.0,2.51786871]
[1718622673518,0.03131709,65960.0,65959.0,2.40386871]
[1718622673656,0.03131709,65960.0,65959.0,2.50386871]
[1718622673860,0.03031709,65960.0,65959.0,2.50586871]
[1718622674075,0.03031709,65960.0,65959.0,2.51986871]
[1718622674279,0.03031709,65960.0,65959.0,2.83437106]
[1718622675454,0.03031709,65960.0,65959.0,2.51986871]
[1718622675663,0.03031709,65960.0,65959.0,2.83436659]
[1718622676228,0.00805892,65960.0,65959.0,2.83436659]
[1718622676430,0.00085,65970.0,65969.0,1.224602]
[1718622676635,0.00085,65970.0,65969.0,1.75037673]
[1718622677740,0.00085,65970.0,65969.0,1.75337673]
[1718622678166,0.00085,65970.0,65969.0,1.75837673]
[1718622678380,0.00085,65970.0,65969.0,1.68557673]
[1718622678588,0.00085,65970.0,65969.0,1.75837673]
[1718622679075,0.00085,65970.0,65969.0,1.68557673]
[1718622679279,0.00085,65970.0,65969.0,1.75837673]
[1718622679830,0.00085,65970.0,65969.0,1.77640511]
[1718622680873,0.00085,65970.0,65969.0,1.70360216]
[1718622681068,0.00085,65970.0,65969.0,1.77640204]
[1718622681268,0.00085,65970.0,65969.0,1.75837673]
[1718622683551,0.00085,65970.0,65969.0,1.94707546]
[1718622683757,0.00085,65970.0,65969.0,1.75837673]
[1718622687634,0.00085,65970.0,65969.0,1.94707546]
[1718622687839,0.00085,65970.0,65969.0,1.75837673]
[1718622689037,0.00085,65970.0,65969.0,1.45520473]
[1718622689662,0.00085,65970.0,65969.0,1.64390346]
[1718622689868,0.00085,65970.0,65969.0,1.45520473]
[1718622690446,0.00085,65970.0,65969.0,1.6616736]
[1718622690720,0.00085,65970.0,65969.0,1.47297487]
[1718622691356,0.00085,65970.0,65969.0,1.6616736]
[1718622691982,0.00085,65970.0,65969.0,1.47297487]
[1718622692186,0.00085,65970.0,65969.0,1.6616736]
[1718622692603,0.00085,65970.0,65969.0,1.34717572]
[1718622692820,0.00085,65970.0,65969.0,1.66168203]
[1718622693834,0.00085,65970.0,65969.0,1.58888203]
[1718622694696,0.00085,65970.0,65969.0,1.56888203]
[1718622695052,0.00085,65970.0,65969.0,1.58888203]
[1718622698712,0.00085,65970.0,65969.0,1.28571003]
[1718622698915,0.01500806,65970.0,65969.0,1.35851003]
[1718622699113,0.00085,65970.0,65969.0,1.35851003]
[1718622699330,0.01500806,65970.0,65969.0,1.35851003]
[1718622699537,0.00085,65970.0,65969.0,1.66168203]
[1718622702187,0.0759,65976.0,65974.0,0.151574]
[1718622702397,0.0759,65976.0,65975.0,0.5370669]
[1718622702595,0.0759,65976.0,65975.0,0.5570669]
[1718622703148,0.232467,65978.0,65975.0,0.5570669]
[1718622703349,0.232467,65978.0,65977.0,0.03800515]
[1718622703350,0.0809,65978.0,65977.0,0.03800515]
[1718622703488,0.0809,65978.0,65977.0,0.61337691]
[1718622703693,0.0809,65978.0,65977.0,0.26086545]
[1718622703911,0.232465,65978.0,65977.0,0.59337497]
[1718622705122,0.271265,65978.0,65977.0,0.59337497]
[1718622705534,0.1197,65978.0,65977.0,0.59337497]
[1718622706194,0.13985737,65978.0,65977.0,0.59437497]
[1718622706315,0.29142237,65978.0,65977.0,0.59437497]
[1718622706722,0.29142237,65978.0,65977.0,0.5943719]
[1718622707329,0.29142237,65978.0,65977.0,0.26186545]
[1718622707537,0.29142237,65978.0,65977.0,0.59437143]
[1718622711106,0.13985737,65978.0,65977.0,0.59437143]
[1718622711690,0.13985737,65978.0,65977.0,0.61437143]
[1718622711893,0.10105737,65978.0,65977.0,0.59437143]
[1718622712068,0.10106488,65978.0,65977.0,0.59437143]
[1718622712907,0.10106488,65978.0,65977.0,0.74593843]
[1718622713534,0.10106488,65978.0,65977.0,0.59437143]
[1718622713799,0.10106488,65978.0,65977.0,0.74593843]
[1718622714003,0.0869,65978.0,65977.0,0.74593843]
[1718622714209,0.10106672,65978.0,65977.0,0.72793405]
[1718622714389,0.10191672,65978.0,65977.0,0.72793405]
[1718622714563,0.02101672,65978.0,65977.0,0.72793405]
[1718622718668,0.02101672,65978.0,65977.0,0.74562366]
[1718622721939,0.02101672,65978.0,65977.0,0.74595112]
[1718622722384,0.02101672,65978.0,65977.0,0.59438412]
[1718622722680,0.02101672,65978.0,65977.0,0.57636705]
[1718622724973,0.02101672,65978.0,65977.0,0.38766524]
[1718622725191,0.02101672,65978.0,65977.0,0.57636493]
[1718622726760,1.15477472,65978.0,65977.0,0.12679979]
[1718622726963,1.27547472,65978.0,65977.0,0.12679979]
[1718622730275,1.20267472,65978.0,65977.0,0.12679979]
[1718622730482,1.20267472,65978.0,65977.0,0.001]
[1718622730483,1.27547472,65978.0,65977.0,0.001]
[1718622730686,1.3209553,65978.0,65977.0,0.001]
[1718622731467,1.27547472,65978.0,65977.0,0.001]
[1718622733440,1.29547472,65978.0,65977.0,0.001]
[1718622733817,1.59860572,65978.0,65977.0,0.001]
[1718622734014,1.29547472,65978.0,65977.0,0.001]
[1718622734447,1.34090697,65978.0,65977.0,0.001]
[1718622735294,1.64403797,65978.0,65977.0,0.001]
[1718622735507,1.34090697,65978.0,65977.0,0.001]
[1718622736364,1.64403797,65978.0,65977.0,0.001]
[1718622736717,1.59860572,65978.0,65977.0,0.001]
[1718622737131,1.79860572,65978.0,65977.0,0.001]
[1718622737636,1.91213612,65978.0,65977.0,0.001]
[1718622737866,1.69860572,65978.0,65977.0,0.001]
[1718622738305,1.88940711,65978.0,65977.0,0.001]
[1718622739160,2.3446259,65978.0,65977.0,0.001]
[1718622739375,1.061231,65961.0,65960.0,0.000935]
[1718622739585,1.061231,65961.0,65960.0,0.01674581]
[1718622739586,1.134031,65961.0,65960.0,0.01674581]
[1718622739794,1.1509318,65961.0,65960.0,0.01674581]
[1718622741099,1.2262318,65961.0,65960.0,0.01674581]
[1718622741345,1.2262318,65961.0,65960.0,0.000935]
[1718622742376,1.5294408,65961.0,65960.0,0.003935]
[1718622742618,1.5494408,65961.0,65960.0,0.003935]
[1718622742822,1.5294408,65961.0,65960.0,0.003935]
[1718622743629,1.5294408,65961.0,65960.0,0.000935]
[1718622744102,1.5494408,65961.0,65960.0,0.000935]
[1718622744740,1.4586408,65961.0,65960.0,0.000935]
[1718622744958,1.5314408,65961.0,65960.0,0.000935]
[1718622748219,1.5514408,65961.0,65960.0,0.000935]
[1718622748881,1.5314408,65961.0,65960.0,0.000935]
[1718622749519,1.5514408,65961.0,65960.0,0.000935]
[1718622751009,1.5314408,65961.0,65960.0,0.000935]
[1718622753588,1.5514408,65961.0,65960.0,0.000935]
[1718622757825,1.8934498,65961.0,65960.0,0.000935]
[1718622758606,1.8914498,65961.0,65960.0,0.000935]
[1718622759137,2.0034498,65961.0,65960.0,0.001935]
[1718622760731,2.0034498,65961.0,65960.0,0.002935]
[1718622760958,2.0064498,65961.0,65960.0,0.002935]
[1718622761183,2.2976588,65961.0,65960.0,0.001935]
[1718622761411,2.54974659,65961.0,65960.0,0.001935]
[1718622761642,2.61374659,65961.0,65960.0,0.002935]
[1718622762054,2.6726012,65961.0,65960.0,0.002935]
[1718622762254,2.71787026,65961.0,65960.0,0.002935]
[1718622762639,2.6726012,65961.0,65960.0,0.002935]
[1718622765099,2.090891,65960.0,65959.0,1e-06]
[1718622765300,2.71242268,65960.0,65959.0,1e-06]
[1718622765509,2.7879997,65960.0,65959.0,1e-06]
[1718622765718,2.7151997,65960.0,65959.0,1e-06]
[1718622766037,2.7879997,65960.0,65959.0,1e-06]
[1718622766380,2.7909997,65960.0,65959.0,0.001001]
[1718622766591,2.81473104,65960.0,65959.0,0.001001]
[1718622766814,2.82773104,65960.0,65959.0,0.002001]
[1718622767780,2.81473104,65960.0,65959.0,0.001001]
[1718622768005,2.74193104,65960.0,65959.0,0.001001]
[1718622768224,2.82873104,65960.0,65959.0,0.001001]
[1718622768464,2.72873104,65960.0,65959.0,0.001001]
[1718622769092,2.82873104,65960.0,65959.0,0.001001]
[1718622770137,2.57988715,65960.0,65959.0,0.001001]
[1718622770343,1.98740454,65960.0,65959.0,0.001001]
[1718622770757,1.9636732,65960.0,65959.0,0.001001]
[1718622771378,2.2668872,65960.0,65959.0,0.001001]
[1718622771995,1.8408732,65960.0,65959.0,0.001001]
[1718622772197,1.7930732,65960.0,65959.0,0.001001]
[1718622772982,1.8537522,65960.0,65959.0,0.001001]
[1718622776378,1.8037522,65960.0,65959.0,0.001001]
[1718622776599,1.8537522,65960.0,65959.0,0.001001]
[1718622776933,1.7809522,65960.0,65959.0,0.001001]
[1718622777142,1.8537522,65960.0,65959.0,0.001001]
[1718622777364,1.8037522,65960.0,65959.0,0.001001]
[1718622777869,1.7109522,65960.0,65959.0,0.001001]
[1718622778069,0.89175741,65960.0,65959.0,0.001001]
[1718622778268,0.96455741,65960.0,65959.0,0.001001]
[1718622778468,1.26777141,65960.0,65959.0,0.001001]
[1718622779093,1.25377141,65960.0,65959.0,0.001001]
[1718622779751,1.25462141,65960.0,65959.0,0.001001]
[1718622780107,1.27462141,65960.0,65959.0,0.001001]
[1718622780321,1.17882141,65960.0,65959.0,1e-06]
[1718622780563,1.25162141,65960.0,65959.0,1e-06]
[1718622780777,1.26562141,65960.0,65959.0,1e-06]
[1718622780973,1.27962141,65960.0,65959.0,0.001001]
[1718622783699,0.80360741,65960.0,65959.0,0.001001]
[1718622783898,0.87640741,65960.0,65959.0,0.001001]
[1718622784311,0.50039341,65960.0,65959.0,0.0148011]
[1718622784505,0.50039341,65960.0,65959.0,0.1572011]
[1718622784966,0.57319341,65960.0,65959.0,0.1572011]
[1718622785106,0.86240741,65960.0,65959.0,0.1572011]
[1718622785537,0.87540741,65960.0,65959.0,0.1572011]
[1718622786736,0.86140741,65960.0,65959.0,0.1562011]
[1718622787130,0.87140741,65960.0,65959.0,0.1572011]
[1718622787451,1.17462141,65960.0,65959.0,0.1572011]
[1718622787648,0.87140741,65960.0,65959.0,0.1572011]
[1718622789074,0.87140741,65960.0,65959.0,0.143401]
[1718622789495,1.17462141,65960.0,65959.0,0.143401]
[1718622790112,1.16706141,65960.0,65959.0,0.143401]
[1718622792334,0.86384741,65960.0,65959.0,0.143401]
[1718622793053,1.16706141,65960.0,65959.0,0.143401]
[1718622793408,1.16706141,65960.0,65959.0,0.1577411]
[1718622795893,0.86384741,65960.0,65959.0,0.1577411]
[1718622797155,0.79104741,65960.0,65959.0,0.1577411]
[1718622797362,0.86384741,65960.0,65959.0,0.1577411]
[1718622797909,1.16706141,65960.0,65959.0,0.1577411]
[1718622799055,0.86384741,65960.0,65959.0,0.1577411]
[1718622802589,0.79104741,65960.0,65959.0,0.1577411]
[1718622802765,0.56063341,65960.0,65959.0,0.1577411]
[1718622803827,0.86384741,65960.0,65959.0,0.1577411]
[1718622804026,0.56063341,65960.0,65959.0,0.1577411]
[1718622806133,0.86384741,65960.0,65959.0,0.1577411]
[1718622807979,0.86384741,65960.0,65959.0,0.28358891]
[1718622808507,0.86384741,65960.0,65959.0,0.15766306]
[1718622808644,0.86384741,65960.0,65959.0,0.26917234]
[1718622808854,0.86384741,65960.0,65959.0,0.14332296]
[1718622809054,0.86384741,65960.0,65959.0,0.001]
[1718622812550,0.86384741,65960.0,65959.0,0.12685136]
[1718622812890,0.86384741,65960.0,65959.0,0.001]
[1718622813093,0.86384741,65960.0,65959.0,0.001935]
[1718622813314,0.86384741,65960.0,65959.0,0.12778559]
[1718622814686,0.86384741,65960.0,65959.0,0.12778566]
[1718622817379,0.79104741,65960.0,65959.0,0.12778566]
[1718622817755,0.86384741,65960.0,65959.0,0.12778566]
[1718622822541,1.16706141,65960.0,65959.0,0.12778566]
[1718622822935,0.86384741,65960.0,65959.0,0.12778566]
[1718622823325,1.16706141,65960.0,65959.0,0.12778566]
[1718622824319,1.15406141,65960.0,65959.0,0.12778566]
[1718622824544,1.14406141,65960.0,65959.0,0.12678566]
[1718622824714,1.15003132,65960.0,65959.0,0.12678566]
[1718622824916,1.15003132,65960.0,65959.0,0.12778566]
[1718622824917,1.15703132,65960.0,65959.0,0.12778566]
[1718622825449,1.15703132,65960.0,65959.0,0.12778761]
[1718622826440,1.16603132,65960.0,65959.0,0.12778761]
[1718622827492,1.21151426,65960.0,65959.0,0.001935]
[1718622828975,1.21152701,65960.0,65959.0,0.001935]
[1718622829173,1.21152701,65960.0,65959.0,0.12778763]
[1718622829797,1.21152701,65960.0,65959.0,0.001935]
[1718622829798,1.16035824,65960.0,65959.0,0.001935]
[1718622829999,1.21153445,65960.0,65959.0,0.001935]
[1718622830225,1.21153445,65960.0,65959.0,0.12778824]
[1718622830445,1.21153544,65960.0,65959.0,0.12778824]
[1718622831845,1.16602993,65960.0,65959.0,0.12778824]
[1718622832053,1.21153551,65960.0,65959.0,0.12778824]
[1718622833806,1.21153466,65960.0,65959.0,0.12778824]
[1718622834251,1.21153933,65960.0,65959.0,0.12778824]
[1718622834751,1.21154298,65960.0,65959.0,0.12778824]
[1718622834953,1.20586817,65960.0,65959.0,0.12778824]
[1718622835155,1.21154298,65960.0,65959.0,0.12778824]
[1718622835772,1.20586817,65960.0,65959.0,0.12778824]
[1718622836133,1.21154335,65960.0,65959.0,0.12778824]
[1718622836917,1.16603862,65960.0,65959.0,0.12778824]
[1718622837125,1.21154323,65960.0,65959.0,0.12778824]
[1718622837874,1.16603862,65960.0,65959.0,0.001935]
[1718622838044,1.18603862,65960.0,65959.0,0.001935]
[1718622838444,1.16603862,65960.0,65959.0,0.001935]
[1718622838863,1.16036372,65960.0,65959.0,0.001935]